bitfinex/quotes_ETHUSD_20250331
["timestamp","ask_amount","ask_price","bid_price","bid_amount"]
[1743409319395,3.0,1803.2,1803.0,16.79147]
[1743409319580,3.0,1803.2,1803.0,11.24517]
[1743409319967,3.0,1803.2,1803.0,16.79133]
[1743409320295,3.0,1803.2,1803.1,5.546]
[1743409320498,3.0,1803.2,1803.0,11.24515]
[1743409320667,3.0,1803.2,1803.0,16.79137]
[1743409321192,3.0,1803.4,1803.1,5.546]
[1743409321595,3.0,1803.4,1803.1,20.046]
[1743409321899,3.0,1803.4,1803.2,5.54566]
[1743409322088,14.0904,1803.4,1803.1,5.54593]
[1743409322894,14.0904,1803.4,1803.0,5.699]
[1743409322895,3.0,1803.2,1803.0,5.699]
[1743409323084,8.5457,1803.2,1803.0,5.699]
[1743409323594,3.0,1803.2,1803.0,5.699]
[1743409323981,8.54573,1803.2,1803.0,5.699]
[1743409324302,3.0,1803.2,1803.0,11.24506]
[1743409325496,3.0,1803.2,1803.1,5.546]
[1743409326513,3.0,1803.2,1803.0,16.79123]
[1743409327071,8.54508,1803.4,1803.1,0.20312606]
[1743409327272,8.54569,1803.2,1803.1,0.20312606]
[1743409327719,18.55589747,1803.2,1803.1,0.20312606]
[1743409328001,15.35879,1803.2,1803.1,0.20312606]
[1743409328223,3.0,1802.8,1802.7,37.729]
[1743409328975,3.0,1802.8,1802.7,43.27623]
[1743409329211,3.0,1802.8,1802.7,37.729]
[1743409329592,5.54677,1802.9,1802.7,37.729]
[1743409329793,3.0,1802.8,1802.7,37.729]
[1743409332198,3.0,1802.8,1802.7,43.27623]
[1743409332827,3.0,1803.0,1802.8,5.54684]
[1743409333042,3.0,1803.0,1802.9,5.54661]
[1743409333327,3.0,1803.0,1802.9,20.04661]
[1743409333643,3.0,1803.0,1802.9,14.5]
[1743409334549,3.0,1803.0,1802.7,16.79124]
[1743409334838,3.0,1803.0,1802.8,5.54689]
[1743409335037,3.0,1803.0,1802.8,20.04689]
[1743409335638,3.0,1803.0,1802.8,25.5937]
[1743409336244,3.0,1803.0,1802.8,25.59364]
[1743409336743,3.0,1803.0,1802.8,20.04681]
[1743409337195,3.0,1803.0,1802.7,16.79133]
[1743409337608,8.5464,1803.0,1802.7,5.54712]
[1743409337829,8.54661,1802.9,1802.8,5.695]
[1743409338037,3.0,1802.9,1802.8,5.695]
[1743409338396,3.0,1802.9,1802.8,12.07042]
[1743409339438,15.08583747,1803.3,1802.9,5.54646]
[1743409339622,3.0,1803.2,1802.9,5.54646]
[1743409340138,3.0,1803.2,1802.9,11.09293]
[1743409340327,8.54571,1803.2,1802.9,5.54646]
[1743409340951,3.0,1803.2,1802.9,11.09296]
[1743409341405,3.0,1803.2,1802.9,25.59296]
[1743409342038,3.0,1803.2,1803.0,5.75311587]
[1743409344908,3.0,1803.3,1803.1,5.54579]
[1743409345113,5.54541,1803.3,1803.1,0.7933]
[1743409345344,3.0,1803.3,1803.2,0.20335856]
[1743409346249,3.0,1803.2,1803.0,26.38574]
[1743409346542,3.0,1803.2,1803.0,20.83948]
[1743409346922,14.0917,1803.2,1802.9,5.54661]
[1743409347238,3.0,1803.2,1802.9,11.09309]
[1743409347540,3.0,1803.2,1803.0,5.54606]
[1743409347741,6.8638,1803.5,1803.0,0.7933]
[1743409348041,3.0,1803.4,1803.3,0.7933]
[1743409348216,3.0,1803.5,1803.3,12.03168]
[1743409348546,3.0,1803.5,1803.3,17.57697]
[1743409349114,3.0,1803.6,1803.4,5.54508]
[1743409350446,3.8138,1803.7,1803.3,6.4863]
[1743409350643,3.0,1803.4,1803.3,5.693]
[1743409352271,8.54508,1803.4,1803.3,5.693]
[1743409353039,12.50338747,1803.4,1803.3,5.693]
[1743409353562,3.0,1803.4,1803.3,5.693]
[1743409356662,3.0,1803.4,1803.3,11.23838]
[1743409357034,3.0,1803.4,1803.3,11.44069211]
[1743409358945,3.0,1803.6,1803.4,5.54503]
[1743409359264,3.0,1803.6,1803.5,0.20062627]
[1743409361634,0.1,1803.9,1803.7,5.54415]
[1743409361837,0.1,1803.9,1803.8,0.19987063]
[1743409362876,0.1,1803.9,1803.8,5.74372063]
[1743409363166,0.1,1803.9,1803.8,0.19987063]
[1743409363384,0.1,1803.9,1803.8,5.74372063]
[1743409364451,0.1,1803.9,1803.8,6.55172063]
[1743409365050,0.1,1803.9,1803.8,6.60715332]
[1743409365256,0.1,1803.9,1803.8,6.55172063]
[1743409365662,0.1,1803.9,1803.8,21.05172063]
[1743409369484,0.1,1803.9,1803.8,0.19987063]
[1743409369688,0.1,1803.9,1803.8,5.88687063]
[1743409369977,0.1,1803.9,1803.8,11.43072063]
[1743409375101,0.7964,1804.8,1804.1,6.35092]
[1743409375255,0.7964,1804.8,1804.6,5.54126]
[1743409375455,0.7964,1804.8,1804.7,5.87865335]
[1743409376777,0.7964,1804.8,1804.7,0.19365335]
[1743409377091,9.33718,1804.8,1804.7,0.19365335]
[1743409377253,9.33718,1804.8,1804.5,11.22667]
[1743409377455,9.33718,1804.8,1804.6,0.19365335]
[1743409377791,3.7964,1804.8,1804.6,5.73497335]
[1743409377956,3.7964,1804.8,1804.7,5.54108]
[1743409378156,3.7964,1804.8,1804.6,5.54132]
[1743409378463,3.7964,1804.8,1804.7,0.19365335]
[1743409378670,3.7964,1804.8,1804.6,5.54132]
[1743409378854,3.7964,1804.8,1804.7,0.19365335]
[1743409379055,3.0,1804.8,1804.7,5.54108]
[1743409379388,3.0,1804.8,1804.7,5.73473335]
[1743409380090,0.1,1804.9,1804.7,5.73473335]
[1743409380388,0.1,1804.9,1804.7,5.73459335]
[1743409380557,3.1,1804.9,1804.7,0.19365335]
[1743409380758,3.1,1804.9,1804.7,5.54108]
[1743409381089,3.1,1804.9,1804.8,0.18941476]
[1743409382180,3.1,1804.9,1804.8,5.73019476]
[1743409382578,3.1,1804.9,1804.8,0.18941476]
[1743409383365,11.28475275,1804.9,1804.8,0.18941476]
[1743409383576,3.8241,1804.6,1804.5,5.682]
[1743409384391,3.8241,1804.6,1804.4,11.22398]
[1743409384758,3.8241,1804.6,1804.3,5.54226]
[1743409384959,9.36561,1804.6,1804.4,5.682]
[1743409385559,14.90715,1804.6,1804.4,5.682]
[1743409385897,19.32791878,1804.6,1804.2,11.08512]
[1743409386054,18.10434747,1804.6,1804.3,5.682]
[1743409386257,12.56271747,1804.6,1804.3,11.22428]
[1743409386588,18.10426747,1804.6,1804.2,5.54248]
[1743409386800,8.73901747,1804.5,1804.2,11.22348]
[1743409387108,3.8241,1804.6,1803.9,6.34473]
[1743409387109,18.10601747,1804.3,1803.9,5.54344]
[1743409387391,9.36641,1804.3,1804.0,5.681]
[1743409387892,8.54363,1803.9,1803.7,5.681]
[1743409388099,3.0,1803.9,1803.7,11.22515]
[1743409389183,3.0,1803.9,1803.7,5.681]
[1743409391599,8.54359,1803.9,1803.7,5.681]
[1743409391777,11.74069747,1803.9,1803.7,5.681]
[1743409391985,8.54359,1803.9,1803.7,5.681]
[1743409392304,3.0,1803.9,1803.7,11.22514]
[1743409392506,3.0,1803.9,1803.8,14.5]
[1743409395375,3.0,1803.9,1803.8,20.04385]
[1743409395570,3.0,1804.0,1803.8,20.83359]
[1743409395906,3.0,1804.1,1803.8,26.37733]
[1743409396103,3.0,1804.1,1803.9,5.54325]
[1743409396403,3.95420747,1804.4,1803.9,5.54353]
[1743409396607,3.0,1804.1,1803.9,5.54353]
[1743409397110,6.19710747,1804.1,1803.8,11.87742]
[1743409397415,6.19710747,1804.1,1803.9,5.59881962]
[1743409397614,6.19710747,1804.1,1803.9,5.54339]
[1743409397801,3.0,1804.2,1804.0,5.54323]
[1743409399215,3.0,1804.2,1803.9,11.0868]
[1743409401117,3.0,1804.2,1803.9,5.54339]
[1743409401288,3.0,1804.2,1803.9,11.14220962]
[1743409401617,3.0,1804.2,1803.9,11.08678]
[1743409401999,3.0,1804.2,1804.0,5.54307]
[1743409402199,3.0,1804.2,1804.1,5.54292]
[1743409402506,3.0,1804.2,1804.1,11.41654684]
[1743409403085,0.7571,1804.6,1804.1,6.66352684]
[1743409403284,1.92018275,1804.9,1804.1,6.66352684]
[1743409403285,17.88898,1804.8,1804.4,5.54183]
[1743409403485,3.0,1804.6,1804.5,0.19205868]
[1743409404519,6.19710747,1804.6,1804.5,0.19205868]
[1743409404734,11.73849747,1804.6,1804.3,5.54209]
[1743409405033,11.73849747,1804.6,1804.5,0.19205868]
[1743409405222,6.19710747,1804.6,1804.4,5.54189]
[1743409405537,5.54286,1804.2,1803.8,5.54374]
[1743409405699,3.19710747,1804.0,1803.8,5.679]
[1743409406924,3.19710747,1804.0,1803.8,11.22278]
[1743409407104,3.19710747,1804.0,1803.8,11.22272]
[1743409407304,8.74047747,1804.0,1803.8,5.679]
[1743409407726,3.0,1803.9,1803.8,5.679]
[1743409413241,3.0,1803.9,1803.8,5.83709062]
[1743409416946,6.19710747,1803.9,1803.8,5.83709062]
[1743409417248,5.54335,1804.0,1803.8,5.83709062]
[1743409417249,3.0,1804.1,1803.9,0.7943]
[1743409417445,3.0,1804.1,1803.9,6.33772]
[1743409417743,3.19710747,1804.0,1803.9,6.33784]
[1743409419644,3.19710747,1804.0,1803.9,0.7943]
[1743409419845,3.0,1803.9,1803.8,11.22271]
[1743409420637,3.0,1803.9,1803.8,5.679]
[1743409420825,3.0,1803.9,1803.8,11.22285]
[1743409423550,3.0,1804.1,1804.0,5.54307]
[1743409424269,3.0,1804.1,1803.9,5.54349]
[1743409424431,3.0,1804.1,1803.9,11.08692]
[1743409424624,3.0,1804.1,1803.9,11.08685]
[1743409425627,3.0,1804.1,1803.9,5.54342]
[1743409425850,3.0,1804.1,1803.9,11.08688]
[1743409426031,3.0,1804.1,1803.9,11.08687]
[1743409426956,3.0,1804.1,1803.9,11.08683]
[1743409427758,3.0,1804.1,1803.9,5.54341]
[1743409429576,3.0,1803.9,1803.8,11.22278]
[1743409432368,3.0,1803.9,1803.8,5.83475746]
[1743409432666,8.54354,1803.9,1803.8,0.16075746]
[1743409432969,0.7937,1803.7,1803.6,31.991]
[1743409433129,8.54462,1803.6,1803.2,6.34674]
[1743409433432,3.19710747,1803.4,1803.2,17.5662]
[1743409434428,3.19710747,1803.4,1803.3,5.54538]
[1743409435655,3.19710747,1803.6,1803.4,5.54488]
[1743409435876,3.19710747,1803.6,1803.4,5.54497]
[1743409436024,3.19710747,1803.6,1803.3,5.54535]
[1743409436524,3.0,1803.5,1803.2,12.02072]
[1743409436725,3.0,1803.5,1803.2,17.56626]
[1743409437140,3.0,1803.5,1803.3,5.54525]
[1743409437862,3.19710747,1803.4,1803.2,12.02075]
[1743409438062,3.19710747,1803.4,1803.2,5.674]
[1743409438436,3.19710747,1803.4,1803.2,11.27513128]
[1743409438646,3.19710747,1803.4,1803.2,11.21968]
[1743409438845,3.19710747,1803.4,1803.3,5.54538]
[1743409439257,3.0,1803.5,1803.3,11.09076]
[1743409439467,3.0,1803.5,1803.3,5.54538]
[1743409439764,0.7937,1803.7,1803.5,5.54477]
[1743409439963,9.24710747,1803.8,1803.6,5.674]
[1743409440166,3.19710747,1803.8,1803.6,5.674]
[1743409442162,3.19710747,1803.8,1803.6,11.21846]
[1743409442689,3.0,1803.8,1803.7,5.54401]
[1743409443075,3.0,1803.8,1803.6,11.21834]
[1743409443666,3.0,1803.8,1803.6,16.76267]
[1743409443849,3.0,1803.8,1803.7,5.54415]
[1743409444362,3.19710747,1803.9,1803.7,5.54415]
[1743409444560,3.19710747,1803.9,1803.6,31.26267]
[1743409445191,3.19710747,1803.9,1803.6,25.71833]
[1743409445552,3.19710747,1803.9,1803.6,31.26264]
[1743409445754,3.19710747,1803.9,1803.6,25.71831]
[1743409446955,3.19710747,1803.9,1803.7,0.16551427]
[1743409447393,3.19710747,1803.9,1803.6,25.71831]
[1743409447549,3.19710747,1803.9,1803.8,0.16551427]
[1743409447750,3.19710747,1803.9,1803.6,25.71831]
[1743409448042,3.0,1803.8,1803.6,20.174]
[1743409448248,3.0,1803.8,1803.6,25.71836]
[1743409448444,3.19710747,1803.7,1803.4,6.33212]
[1743409448690,3.19710747,1803.7,1803.5,5.672]
[1743409448993,4.02780747,1803.7,1803.3,37.54233]
[1743409449158,8.54399,1803.8,1803.6,5.672]
[1743409449480,3.19710747,1803.7,1803.6,5.672]
[1743409452087,3.0,1803.8,1803.6,11.2163]
[1743409452784,3.0,1803.8,1803.6,5.672]
[1743409453495,3.0,1803.8,1803.7,14.5]
[1743409454088,3.0,1803.8,1803.6,5.672]
[1743409454293,3.0,1803.8,1803.6,11.21636]
[1743409454464,3.0,1803.8,1803.6,25.71636]
[1743409454878,3.0,1803.8,1803.7,5.54415]
[1743409455488,3.0,1803.8,1803.6,25.71636]
[1743409455797,3.0,1803.8,1803.6,25.71633]
[1743409456000,3.0,1803.8,1803.6,31.26068]
[1743409456298,3.0,1803.8,1803.6,25.71633]
[1743409456595,3.0,1803.8,1803.6,31.26066]
[1743409456801,3.0,1803.8,1803.7,5.5995863]
[1743409457093,3.97350747,1804.3,1804.0,5.54308]
[1743409457256,3.19710747,1804.3,1804.1,11.26834443]
[1743409457607,3.0,1804.2,1804.1,11.96752]
[1743409457774,3.0,1804.2,1804.1,26.46752]
[1743409457974,3.0,1804.2,1804.1,11.96752]
[1743409458293,3.0,1804.2,1804.1,5.67]
[1743409458700,8.73952747,1804.3,1804.1,5.67]
[1743409459001,4.44441075,1804.2,1804.1,5.67]
[1743409459167,9.98703075,1804.2,1803.8,6.29834]
[1743409459366,3.19710747,1804.1,1803.9,5.67]
[1743409460070,11.74005747,1804.1,1804.0,5.669]
[1743409460270,13.05847129,1804.1,1804.0,5.669]
[1743409460597,5.54369,1803.9,1803.5,0.7833]
[1743409460770,5.54369,1803.9,1803.6,5.669]
[1743409460771,3.19710747,1803.7,1803.6,5.669]
[1743409462098,3.19710747,1803.7,1803.6,5.82998946]
[1743409464568,6.96210747,1803.8,1803.6,20.32998946]
[1743409466403,6.05,1804.0,1803.6,26.63867946]
[1743409466698,6.19710747,1803.9,1803.6,26.63867946]
[1743409468389,6.19710747,1803.9,1803.6,32.18300946]
[1743409468588,6.19710747,1803.9,1803.7,5.54412]
[1743409468782,3.0,1803.9,1803.8,5.54385]
[1743409468982,9.05,1804.0,1803.9,5.54354]
[1743409469168,3.0,1804.0,1803.9,5.54354]
[1743409469373,3.0,1804.0,1803.9,6.32614]
[1743409469575,3.0,1804.0,1803.9,6.48869561]
[1743409469801,3.19710747,1804.2,1803.9,6.48860561]
[1743409470003,3.19710747,1804.2,1804.0,5.668]
[1743409470313,6.19710747,1804.3,1804.0,11.42736393]
[1743409470605,6.19710747,1804.3,1804.0,5.82875747]
[1743409471603,6.19710747,1804.3,1804.0,0.16075747]
[1743409471792,8.74002747,1804.1,1804.0,0.16075747]
[1743409472604,10.25131522,1804.1,1804.0,0.16075747]
[1743409476414,3.19710747,1804.1,1804.0,0.16075747]
[1743409477317,8.74002747,1804.1,1804.0,0.16075747]
[1743409477619,3.19710747,1804.1,1804.0,0.16075747]
[1743409478620,8.74002747,1804.1,1804.0,0.16075747]
[1743409481735,3.19710747,1804.1,1804.0,0.16075747]
[1743409481942,14.78912747,1804.4,1804.0,6.52588747]
[1743409482103,3.19710747,1804.4,1804.0,0.98275747]
[1743409482290,3.19710747,1804.2,1804.0,0.98275747]
[1743409482635,6.19710747,1804.2,1804.1,14.5]
[1743409482789,6.19710747,1804.2,1804.1,0.16052547]
[1743409482999,11.73972747,1804.2,1804.1,0.16052547]
[1743409483316,11.73972747,1804.2,1804.0,14.5]
[1743409483523,6.19710747,1804.2,1804.1,0.16052547]
[1743409483729,3.19710747,1804.2,1804.1,0.16052547]
[1743409483900,3.19710747,1804.4,1804.1,5.70344547]
[1743409484095,3.19710747,1804.4,1804.1,6.48044547]
[1743409484342,3.19710747,1804.4,1804.1,0.93752547]
[1743409484845,8.73913747,1804.4,1804.1,0.93752547]
[1743409485547,3.19710747,1804.4,1804.1,6.48044547]
[1743409485701,3.19710747,1804.4,1804.1,6.53586678]
[1743409486139,3.19710747,1804.4,1804.1,6.48044547]
[1743409486326,8.73910747,1804.4,1804.1,0.93752547]
[1743409486816,5.54232,1804.3,1804.1,0.93752547]
[1743409487847,8.73910747,1804.4,1804.1,0.93752547]
[1743409488143,3.19710747,1804.2,1804.1,0.16052547]
[1743409488336,3.19710747,1804.2,1804.1,5.82452547]
[1743409488546,8.73910747,1804.4,1804.1,6.48386802]
[1743409488706,8.73910747,1804.4,1804.1,5.82452547]
[1743409489153,5.54233,1804.3,1804.1,5.82452547]
[1743409489308,8.73910747,1804.4,1804.1,5.82452547]
[1743409489510,5.54231,1804.3,1804.1,5.82452547]
[1743409489752,8.73910747,1804.4,1804.1,5.82452547]
[1743409490758,3.19710747,1804.2,1804.1,5.82452547]
[1743409494128,8.73915747,1804.4,1804.1,5.82452547]
[1743409494466,8.73911747,1804.4,1804.1,5.82452547]
[1743409495177,14.28131747,1804.4,1804.1,5.82452547]
[1743409495770,5.5424,1804.3,1804.1,5.82452547]
[1743409495934,11.0849,1804.3,1804.1,5.82452547]
[1743409496356,5.5424,1804.3,1804.1,5.82452547]
[1743409496981,5.5424,1804.3,1804.1,0.16052547]
[1743409497182,12.54162747,1804.2,1804.1,0.16052547]
[1743409497482,11.08727,1803.9,1803.6,32.7852]
[1743409497659,3.19710747,1803.8,1803.7,5.661]
[1743409497861,8.74095747,1803.8,1803.7,5.661]
[1743409498060,3.19710747,1803.8,1803.7,5.661]
[1743409500276,14.28385747,1804.0,1803.7,5.661]
[1743409500483,5.54355,1803.9,1803.7,5.661]
[1743409500776,5.54385,1803.8,1803.7,5.661]
[1743409500974,5.54415,1803.7,1803.6,31.993]
[1743409501896,3.19710747,1803.8,1803.6,31.993]
[1743409503402,8.74096747,1803.8,1803.6,31.993]
[1743409504516,3.19710747,1803.8,1803.6,31.993]
[1743409505327,14.59358,1803.9,1803.6,31.993]
[1743409505626,14.59358,1803.9,1803.6,32.8139]
[1743409505992,8.54358,1803.9,1803.6,32.8139]
[1743409506299,14.0873,1803.9,1803.6,32.8139]
[1743409506500,8.54358,1803.9,1803.6,32.8139]
[1743409506819,5.54388,1803.8,1803.6,32.8139]
[1743409507120,3.0,1803.8,1803.7,0.13448775]
[1743409507329,3.0,1803.8,1803.6,32.8139]
[1743409507492,3.0,1803.8,1803.7,0.13448775]
[1743409507694,3.0,1803.8,1803.6,0.8209]
[1743409508025,3.0,1803.8,1803.7,14.63448775]
[1743409508211,8.54385,1803.8,1803.7,0.13448775]
[1743409508933,8.54385,1803.8,1803.6,15.3209]
[1743409509138,8.54385,1803.8,1803.7,0.13448775]
[1743409509432,8.54385,1803.8,1803.6,15.3209]
[1743409509621,8.54385,1803.8,1803.7,0.13448775]
[1743409509809,3.0,1803.8,1803.6,15.3209]
[1743409510006,3.0,1803.8,1803.7,0.13448775]
[1743409510212,3.0,1803.9,1803.6,20.86535]
[1743409510403,3.0,1803.9,1803.7,0.13703317]
[1743409510799,3.0,1803.9,1803.6,20.86535]
[1743409511162,3.19710747,1803.8,1803.7,0.13703317]
[1743409511316,8.74095747,1803.8,1803.7,5.79703317]
[1743409511954,3.19710747,1803.8,1803.7,5.79703317]
[1743409512448,8.74095747,1803.8,1803.7,5.79703317]
[1743409512817,3.19710747,1803.8,1803.7,5.79703317]
[1743409513044,8.54381,1803.9,1803.7,5.79703317]
[1743409513245,3.0,1803.9,1803.7,6.61503317]
[1743409513548,3.0,1803.9,1803.7,13.18037506]
[1743409513727,3.0,1803.9,1803.7,6.61503317]
[1743409513926,5.54385,1803.8,1803.7,5.79703317]
[1743409514171,8.54384,1803.9,1803.7,5.79703317]
[1743409514321,8.54378,1803.9,1803.7,5.79703317]
[1743409514520,14.0875,1803.9,1803.7,5.79703317]
[1743409515520,8.54372,1803.9,1803.7,5.79703317]
[1743409515720,8.74095747,1803.8,1803.7,5.79703317]
[1743409515951,3.19710747,1803.8,1803.7,5.79703317]
[1743409516957,8.74095747,1803.8,1803.7,5.79703317]
[1743409520571,13.55002322,1803.8,1803.7,0.13703317]
[1743409520767,14.85582322,1803.8,1803.7,0.13703317]
[1743409520959,8.54477,1803.5,1803.4,31.993]
[1743409521157,11.74187747,1803.5,1803.4,31.993]
[1743409522148,11.74187747,1803.5,1803.4,0.13691743]
[1743409522348,20.84792522,1803.5,1803.4,0.13691743]
[1743409522672,11.09107,1803.3,1803.1,5.658]
[1743409522875,8.74260747,1803.3,1803.1,5.658]
[1743409523038,3.19710747,1803.2,1803.1,5.658]
[1743409523240,8.74279747,1803.2,1803.1,5.658]
[1743409523573,8.74279747,1803.2,1802.9,38.36736]
[1743409523574,5.54631,1803.0,1802.9,31.995]
[1743409523783,8.74341747,1803.0,1802.9,31.995]
[1743409524450,11.74341747,1803.0,1802.9,31.995]
[1743409529180,6.19710747,1803.0,1802.9,31.995]
[1743409529966,3.19710747,1803.2,1802.9,37.54145]
[1743409531783,8.74285747,1803.2,1802.9,37.54145]
[1743409532485,14.28870747,1803.2,1802.9,31.995]
[1743409532685,8.74285747,1803.2,1802.9,31.995]
[1743409532982,3.19710747,1803.5,1803.1,5.54588]
[1743409533152,14.79179747,1803.6,1803.3,0.809]
[1743409533484,3.19710747,1803.5,1803.3,0.809]
[1743409534360,8.74190747,1803.5,1803.2,5.657]
[1743409534572,3.19710747,1803.4,1803.2,5.657]
[1743409535276,3.19710747,1803.3,1802.9,32.7672]
[1743409535483,3.19710747,1803.2,1803.0,5.657]
[1743409535787,3.19710747,1803.2,1803.0,5.71245793]
[1743409536083,3.19710747,1803.4,1803.1,5.54589]
[1743409536286,11.74228747,1803.4,1803.1,0.8234]
[1743409536791,17.28753747,1803.4,1803.1,0.8234]
[1743409537192,6.34698,1803.3,1803.2,0.11848203]
[1743409537373,9.54408747,1803.3,1803.2,0.11848203]
[1743409537570,15.08970747,1803.3,1802.9,44.01894]
[1743409537770,9.54408747,1803.3,1803.2,0.11848203]
[1743409537991,8.74248747,1803.3,1802.9,49.56539]
[1743409538592,8.74248747,1803.3,1803.0,0.11848203]
[1743409538790,14.28802747,1803.3,1803.0,0.11848203]
[1743409538993,8.74248747,1803.3,1803.0,0.11848203]
[1743409539707,3.19710747,1803.3,1803.0,5.66475203]
[1743409539914,8.74259747,1803.3,1803.0,0.11848203]
[1743409540460,14.28817747,1803.3,1803.0,0.11848203]
[1743409540660,8.74259747,1803.3,1803.0,0.17393996]
[1743409541072,14.28815747,1803.3,1803.0,0.11848203]
[1743409541281,8.74259747,1803.3,1803.0,0.11848203]
[1743409541782,14.28814747,1803.3,1803.0,0.11848203]
[1743409543414,5.54569,1803.2,1803.0,0.11848203]
[1743409543786,5.546,1803.1,1803.0,0.11848203]
[1743409544034,5.54569,1803.2,1803.0,0.11848203]
[1743409546327,3.19710747,1803.3,1803.0,0.11848203]
[1743409546489,14.09043,1803.4,1803.0,5.66478203]
[1743409546695,3.0,1803.4,1803.1,5.54589]
[1743409547015,8.54518,1803.4,1803.2,0.1203327]
[1743409547421,6.05,1803.6,1803.3,5.654]
[1743409547619,5.54355,1803.9,1803.5,0.8125]
[1743409547797,3.99210747,1804.0,1803.7,5.54401]
[1743409548135,11.59302,1804.1,1803.8,6.56094351]
[1743409548308,3.0,1804.0,1803.8,6.56094351]
[1743409548496,8.54334,1804.0,1803.8,6.56094351]
[1743409548730,5.54354,1803.9,1803.8,5.77404351]
[1743409548938,14.29064622,1803.9,1803.8,5.77404351]
[1743409550039,12.56224747,1803.9,1803.8,5.77404351]
[1743409550739,6.19710747,1803.9,1803.8,5.77404351]
[1743409551177,3.0,1803.9,1803.8,5.77404351]
[1743409555362,3.0,1804.0,1803.8,11.31772351]
[1743409555567,5.54297,1804.1,1803.8,11.31772351]
[1743409555763,5.54297,1804.1,1803.8,5.77404351]
[1743409558186,3.8289,1804.3,1803.8,5.77404351]
[1743409558388,0.7557,1804.5,1803.9,0.85062844]
[1743409558550,5.54194,1804.5,1804.2,0.7952]
[1743409558758,9.29756,1804.4,1804.3,0.11213398]
[1743409558959,20.07059714,1804.4,1804.3,0.11213398]
[1743409559190,6.29781,1804.3,1804.2,5.651]
[1743409559485,12.49491747,1804.3,1804.2,5.76307619]
[1743409560587,11.73941747,1804.3,1804.2,5.76307619]
[1743409563916,6.19710747,1804.3,1804.2,5.76307619]
[1743409564609,3.0,1804.3,1804.2,5.76307619]
[1743409564779,8.54231,1804.3,1804.2,5.76307619]
[1743409564983,3.0,1804.3,1804.2,5.76307619]
[1743409565178,8.54231,1804.3,1804.2,5.76307619]
[1743409566195,11.73941747,1804.3,1804.2,5.76307619]
[1743409566512,3.0,1804.3,1804.2,5.76307619]
[1743409566677,6.05,1804.4,1804.3,5.54231]
[1743409566878,9.24710747,1804.7,1804.4,6.35021]
[1743409567089,14.78828747,1804.7,1804.5,0.10930246]
[1743409567284,3.0,1804.6,1804.5,0.10930246]
[1743409567685,9.24710747,1804.7,1804.5,0.10930246]
[1743409567874,6.05,1804.7,1804.6,5.648]
[1743409568091,6.05,1804.7,1804.6,5.75597384]
[1743409568879,3.1,1804.9,1804.8,5.54078]
[1743409569089,0.1,1804.9,1804.8,6.35888]
[1743409569399,0.1,1804.9,1804.8,6.46685384]
[1743409569802,0.1,1804.9,1804.8,6.52225387]
[1743409570014,0.1,1804.9,1804.8,6.46685384]
[1743409570319,0.1,1804.9,1804.8,0.92607384]
[1743409570678,0.1,1804.9,1804.8,0.10797384]
[1743409570884,0.1,1804.9,1804.8,20.147]
[1743409571085,0.1,1804.9,1804.8,20.25497384]
[1743409571398,0.1,1804.9,1804.8,5.75497384]
[1743409573387,0.1,1804.9,1804.8,11.29575384]
[1743409573720,0.1,1804.9,1804.8,5.647]
[1743409574599,0.1,1804.9,1804.8,11.18778]
[1743409574794,0.1,1804.9,1804.8,11.98818]
[1743409575506,0.1,1804.9,1804.8,6.4474]
[1743409577427,0.1,1804.9,1804.8,0.8004]
[1743409577603,0.1,1804.9,1804.8,6.4444]
[1743409578999,0.1,1804.9,1804.8,12.04058086]
[1743409579217,0.1,1804.9,1804.8,11.98518]
[1743409579422,0.1,1804.9,1804.8,6.4444]
[1743409580500,0.1,1804.9,1804.8,11.98518]
[1743409581343,0.1,1804.9,1804.8,6.4444]
[1743409583337,0.1,1804.9,1804.8,11.98518]
[1743409584134,0.1,1804.9,1804.8,20.9444]
[1743409584334,0.05,1804.9,1804.8,20.9444]
[1743409584531,0.05,1804.9,1804.8,26.48518]
[1743409588335,0.05,1804.9,1804.8,26.90847106]
[1743409602383,0.05,1804.9,1804.8,58.87647106]
[1743409602856,1e-05,1804.9,1804.8,58.87647106]
[1743409606693,1e-05,1804.9,1804.8,62.42647106]
[1743409611498,1e-05,1804.9,1804.8,62.52647106]
[1743409612196,0.1,1805.9,1805.7,5.53801]
[1743409612404,0.1,1805.9,1805.8,11.17171]
[1743409612791,0.1,1805.9,1805.8,25.67171]
[1743409613708,0.1,1805.9,1805.8,26.08157199]
[1743409617380,0.1,1805.9,1805.8,26.85837199]
[1743409618080,0.1,1805.9,1805.8,20.44757199]
[1743409618281,0.1,1805.9,1805.8,26.07857199]
[1743409620843,0.1,1805.9,1805.8,26.90207199]
[1743409621137,0.1,1805.9,1805.8,27.45207199]
[1743409622535,0.7942,1806.8,1806.5,5.53555]
[1743409622819,6.32888,1806.8,1806.6,5.63]
[1743409623397,0.7942,1806.8,1806.6,5.63]
[1743409623593,0.7942,1806.8,1806.6,5.6853465]
[1743409623798,6.32886,1806.8,1806.6,5.6853465]
[1743409624000,11.86372,1806.8,1806.6,5.63]
[1743409624430,6.32886,1806.8,1806.6,5.63]
[1743409625519,0.7942,1806.8,1806.6,5.63]
[1743409625720,6.3289,1806.8,1806.6,5.63]
[1743409626112,0.7942,1806.8,1806.6,11.16525]
[1743409626312,0.7942,1806.8,1806.7,5.53495]
[1743409626823,0.7942,1806.8,1806.6,57.61412]
[1743409627026,0.7942,1806.8,1806.6,52.079]
[1743409627544,0.7942,1806.8,1806.6,57.61422]